fUST/lending_fUST_20260124
["ID","MTS","AMOUNT","RATE_DAILY","PERIOD"]
[403135285,1769184041412,211.78,0.00012,2]
[403135286,1769184050287,5000.0,0.00012,2]
[403135287,1769184052679,-500.0,0.00012146,2]
[403135288,1769184052707,-500.0,0.00012146,2]
[403135289,1769184052733,-500.0,0.00012146,2]
[403135290,1769184052753,-500.0,0.00012146,2]
[403135291,1769184052765,-500.0,0.00012146,2]
[403135292,1769184052776,-91.0,0.00012146,2]
[403135293,1769184052786,-150.0,0.00012455,2]
[403135294,1769184052795,-259.0,0.00012771,2]
[403135295,1769184052811,-116.43334024,0.00012771,2]
[403135296,1769184052820,-155.35161307,0.00012771,2]
[403135302,1769184226813,1564.3631765,0.00011771,2]
[403135303,1769184260782,-3271.78495331,0.00012516,2]
[403135304,1769184260807,-5000.0,0.00012642,2]
[403135305,1769184260833,-150.0,0.00012706,2]
[403135306,1769184260857,-300.0,0.00012769,2]
[403135307,1769184260882,-500.0,0.0001277,2]
[403135308,1769184260907,-500.0,0.0001277,2]
[403135309,1769184260935,-500.0,0.0001277,2]
[403135310,1769184260960,-500.0,0.0001277,2]
[403135311,1769184260986,-581.85052369,0.0001277,2]
[403135312,1769184261010,-216.37001135,0.0001277,2]
[403135313,1769184261034,-319.02309851,0.00012772,2]
[403135314,1769184261064,-95226.70861471,0.00012773,2]
[403135315,1769184261087,-998.20017422,0.00012926,2]
[403135320,1769184413136,1205.0,0.00012,2]
[403135336,1769184627443,10000.0,0.00012,2]
[403135431,1769184638182,-3783.40782406,0.00012767,2]
[403135436,1769184638229,-1216.59217594,0.00012767,2]
[403135438,1769184638238,-601.0,0.00012767,2]
[403135440,1769184638248,-150.0,0.00012961,2]
[403135442,1769184638258,-300.0,0.00013025,2]
[403135444,1769184638267,-960.0,0.00013025,2]
[403135446,1769184638276,-300.0,0.00013026,2]
[403135448,1769184638286,-300.0,0.00013026,2]
[403135450,1769184638295,-300.0,0.00013026,2]
[403135452,1769184638305,-300.0,0.00013026,2]
[403135454,1769184638315,-300.0,0.00013026,2]
[403135456,1769184638325,-300.0,0.00013026,2]
[403135458,1769184638334,-300.0,0.00013026,2]
[403135460,1769184638344,-300.0,0.00013026,2]
[403135463,1769184638353,-300.0,0.00013026,2]
[403135466,1769184638362,-300.0,0.00013026,2]
[403135468,1769184638372,-300.0,0.00013026,2]
[403135470,1769184638381,-300.0,0.00013026,2]
[403135472,1769184638390,-300.0,0.00013026,2]
[403135474,1769184638399,-300.0,0.00013026,2]
[403135476,1769184638408,-300.0,0.00013026,2]
[403135478,1769184638417,-600.0,0.00013026,2]
[403135480,1769184638427,-500.0,0.00013698,2]
[403135482,1769184638440,-500.0,0.00013698,2]
[403135484,1769184638449,-500.0,0.00013698,2]
[403135486,1769184638458,-500.0,0.00013698,2]
[403135488,1769184638468,-500.0,0.00013698,2]
[403135490,1769184638477,-500.0,0.00013698,2]
[403135492,1769184638487,-243.560017,0.00013699,2]
[403135494,1769184638496,-500.0,0.00013699,2]
[403135496,1769184638505,-500.0,0.00013699,2]
[403135498,1769184638514,-175.7611693,0.00014246,2]
[403135500,1769184638524,-1000.0,0.00014247,2]
[403135502,1769184638534,-420.0,0.00014284,2]
[403135504,1769184638543,-720.0,0.00014329,2]
[403135506,1769184638552,-155.0,0.00014639,2]
[403135508,1769184638562,-500.0,0.00014717,2]
[403135510,1769184638571,-500.0,0.00014795,2]
[403135511,1769184638580,-177.0,0.00014961,2]
[403135513,1769184638590,-853.11,0.0001539,3]
[403135515,1769184638599,-4785.92880121,0.000154,2]
[403135518,1769184638611,-160065.17776474,0.000154,2]
[403135520,1769184638626,-4081016.40794588,0.000154,2]
[403135523,1769184638637,-5055.8538328,0.000154,2]
[403135525,1769184638649,-810.13659507,0.000154,2]
[403135527,1769184638663,-424.50976335,0.000154,2]
[403135882,1769184645454,-8839.75889643,0.000154,2]
[403135884,1769184645466,-10688.64487836,0.000154,2]
[403135890,1769184645819,-54016.79175929,0.000154,2]
[403135891,1769184645828,-5000.0,0.0001564,2]
[403135892,1769184645839,-873.42515246,0.00015662,2]
[403135893,1769184645850,-587.0,0.00015664,2]
[403135894,1769184645859,-10000.0,0.00015687,2]
[403135895,1769184645869,-10000.0,0.00015687,2]
[403135896,1769184645879,-10000.0,0.00015687,2]
[403135897,1769184645890,-10000.0,0.00015687,2]
[403135898,1769184645900,-4807.66,0.00015687,2]
[403135899,1769184645911,-864.0,0.00015762,2]
[403135900,1769184645921,-204.0,0.00016961,2]
[403135901,1769184645930,-500.0,0.00016961,2]
[403135902,1769184645939,-200.0,0.00017,2]
[403135903,1769184645949,-200.0,0.00017,2]
[403135904,1769184645958,-200.0,0.00017,2]
[403135905,1769184645967,-200.0,0.00017,2]
[403135906,1769184645977,-200.0,0.00017,2]
[403135907,1769184645987,-200.0,0.00017,2]
[403135909,1769184645996,-200.0,0.00017,2]
[403135910,1769184646004,-200.0,0.00017,2]
[403135911,1769184646013,-200.0,0.00017,2]
[403135912,1769184646022,-200.0,0.00017,2]
[403135913,1769184646032,-211.01391264,0.00017,2]
[403135914,1769184646041,-823.0,0.00017178,2]
[403135915,1769184646051,-500.0,0.00017235,2]
[403135916,1769184646060,-3552.4227371,0.00017311,2]
[403135917,1769184646069,-1000.0,0.00017338,2]
[403135918,1769184646078,-500.0,0.00017509,2]
[403135919,1769184646087,-497.10444444,0.00017783,2]
[403135920,1769184646096,-250.41858677,0.00017874,2]
[403135921,1769184646107,-1041.66666667,0.00017895,2]
[403135922,1769184646116,-873.42515241,0.00018188,2]
[403135923,1769184646125,-178.0,0.0001827,2]
[403135924,1769184646135,-500.0,0.00018454,2]
[403135925,1769184646144,-203.43396952,0.00018463,2]
[403135926,1769184646153,-5000.0,0.00018768,2]
[403135927,1769184646163,-330.0,0.00018838,2]
[403135928,1769184646172,-231.0,0.00018961,2]
[403135929,1769184646182,-223.31616896,0.00019071,2]
[403135930,1769184646192,-446.20266304,0.00019071,2]
[403135931,1769184646202,-156.32131827,0.00019071,2]
[403135932,1769184646213,-1000.0,0.00019072,2]
[403135933,1769184646222,-244.0,0.00019072,2]
[403135934,1769184646232,-507.8145,0.00019178,2]
[403135935,1769184646241,-200.0,0.00019178,2]
[403135936,1769184646251,-507.8145,0.00019178,2]
[403135937,1769184646261,-507.8145,0.00019178,2]
[403135938,1769184646270,-507.8145,0.00019589,3]
[403135939,1769184646280,-507.8145,0.00019589,3]
[403135940,1769184646289,-507.8145,0.00019589,3]
[403135941,1769184646298,-2000.0,0.0002,7]
[403135942,1769184646308,-507.8145,0.0002,4]
[403135943,1769184646317,-507.8145,0.0002,4]
[403135944,1769184646326,-1011.0,0.0002,2]
[403135945,1769184646336,-507.8145,0.0002,4]
[403135946,1769184646345,-5000.0,0.00020332,2]
[403135947,1769184646354,-1261.0563028,0.00020483,2]
[403135948,1769184646363,-243.560017,0.00020548,2]
[403135949,1769184646373,-873.42515241,0.00020714,2]
[403135950,1769184646382,-258.0,0.00020961,2]
[403135951,1769184646391,-1000.0,0.00020979,2]
[403135952,1769184646400,-492.0,0.00020979,2]
[403135953,1769184646409,-178.0,0.0002127,2]
[403135954,1769184646419,-160.97,0.000222,2]
[403135955,1769184646428,-2000.0,0.00022222,7]
[403135956,1769184646437,-285.0,0.00022961,2]
[403135957,1769184646446,-282.0,0.00023,7]
[403135958,1769184646456,-1000.0,0.00023077,10]
[403135959,1769184646465,-791.0,0.00023077,10]
[403135960,1769184646473,-873.42515241,0.0002324,2]
[403135961,1769184646482,-590.5,0.00023339,10]
[403135962,1769184646491,-425.5,0.00023339,10]
[403135963,1769184646502,-3878.0,0.0002424,3]
[403135964,1769184646511,-178.0,0.0002427,2]
[403135965,1769184646520,-2000.0,0.00024444,7]
[403135966,1769184646529,-1041.66666667,0.00024871,10]
[403135967,1769184646540,-500.0,0.0002489,15]
[403135968,1769184646549,-500.0,0.0002489,15]
[403135969,1769184646560,-38000.0,0.00024891,7]
[403135970,1769184646569,-1041.66666667,0.00024891,7]
[403135971,1769184646578,-500.0,0.00024899,15]
[403135972,1769184646588,-500.0,0.00024899,15]
[403135973,1769184646597,-500.0,0.00024899,15]
[403135974,1769184646606,-1609.07,0.00024899,2]
[403135975,1769184646615,-38000.0,0.000249,7]
[403135976,1769184646624,-495.23,0.000249,14]
[403135977,1769184646633,-1041.66666667,0.000249,7]
[403135978,1769184646642,-168.1,0.000249,7]
[403135979,1769184646651,-64874.1048418,0.000249,2]
[403135980,1769184646660,-312.0,0.00024961,2]
[403135981,1769184646670,-297.17221788,0.00025272,2]
[403135982,1769184646680,-21624.701614,0.00025365,2]
[403135983,1769184646691,-339.208,0.00025372,10]
[403135984,1769184646702,-1000.0,0.00025385,10]
[403135985,1769184646711,-1000.0,0.00025385,10]
[403135986,1769184646721,-873.42515241,0.00025766,2]
[403135987,1769184646730,-571.0,0.00026577,3]
[403135988,1769184646740,-2000.0,0.00026667,7]
[403135989,1769184646750,-339.0,0.00026961,2]
[403135990,1769184646760,-500.0,0.00027101,15]
[403135991,1769184646769,-3878.0,0.00027102,3]
[403135992,1769184646778,-178.0,0.0002727,2]
[403135993,1769184646787,-500.0,0.00027397,120]
[403135994,1769184646796,-1609.07,0.00027639,2]
[403135995,1769184646805,-168.1,0.000277,7]
[403135996,1769184646815,-1000.0,0.00027923,30]
[403135997,1769184646824,-1000.0,0.00027923,30]
[403135998,1769184646833,-579.0,0.00027923,30]
[403135999,1769184646842,-250.0,0.00027945,5]
[403136000,1769184646851,-873.42515241,0.00028292,2]
[403136001,1769184646861,-350.0,0.00028493,5]
[403136002,1769184646870,-500.0,0.00028862,11]
[403136003,1769184646879,-2000.0,0.00028889,7]
[403136004,1769184646888,-366.0,0.00028961,2]
[403136005,1769184646898,-10695.04851432,0.00029,2]
[403136006,1769184646907,-500.0,0.00029021,11]
[403136007,1769184646916,-450.0,0.00029041,5]
[403136008,1769184646925,-495.23,0.000291,14]
[403136009,1769184646934,-550.0,0.00029589,5]
[403136010,1769184646944,-1004.916051,0.000297,7]
[403136011,1769184646953,-10000.0,0.0003,10]
[403136012,1769184646962,-2000.01,0.0003,30]
[403136013,1769184646971,-1021.0,0.0003,7]
[403136014,1769184646980,-500.0,0.00030137,120]
[403136015,1769184646990,-173.93791314,0.00030137,2]
[403136016,1769184646998,-650.0,0.00030137,5]
[403136017,1769184647008,-1000.0,0.000302,7]
[403136018,1769184647017,-178.0,0.0003027,2]
[403136019,1769184647026,-1609.07,0.00030379,2]
[403136020,1769184647036,-1193135.98745353,0.0003038,4]
[403136021,1769184647049,-550.68,0.0003038,4]
[403136022,1769184647060,-508.77317047,0.0003038,4]
[403136023,1769184647166,-755.78089031,0.0003038,4]
[403136031,1769184745496,500.0,0.000104,2]
[403136045,1769185152225,150.0,0.00010449,2]
[403136057,1769185673279,3684.24381102,0.00012,5]
[403136060,1769185707154,10022.79737496,5e-06,2]
[403136064,1769185718278,372.04918873,0.0001,2]
[403136065,1769185723115,150.92576983,0.00011,2]
[403136104,1769185832347,-3061.89696782,0.00013026,2]
[403136106,1769185832356,-150.0,0.00013226,2]
[403136108,1769185832366,-155.0,0.00014618,2]
[403136110,1769185832376,-289.31822156,0.000149,2]
[403136112,1769185832386,-300.0,0.00014999,2]
[403136114,1769185832395,-1200.0,0.00014999,2]
[403136116,1769185832404,-300.0,0.00014999,2]
[403136118,1769185832413,-12109.31224058,0.00015,2]
[403136120,1769185832424,-678.08346952,0.00015,2]
[403136124,1769185832450,-1746.23643252,0.00015,2]
[403136126,1769185832462,-521.43882482,0.00015,2]
[403136160,1769185838275,-2449.64641403,0.00015,2]
[403136163,1769185838297,-2829.92790603,0.00015,2]
[403136166,1769185838319,-476.39524797,0.00015,2]
[403136179,1769185838427,-985.65276141,0.00015,2]
[403136182,1769185838440,-302.0,0.00015,2]
[403136403,1769185840512,-10910.29737416,0.00015,2]
[403136405,1769185840523,-2260.32477162,0.00015,2]
[403136407,1769185840534,-177.0,0.00015226,2]
[403136409,1769185840544,-276.9,0.000154,7]
[403136411,1769185840554,-300.0,0.00015707,2]
[403136413,1769185840563,-300.0,0.00015707,2]
[403136415,1769185840573,-300.0,0.00015707,2]
[403136417,1769185840582,-300.0,0.00015707,2]
[403136419,1769185840592,-300.0,0.00015707,2]
[403136421,1769185840601,-300.0,0.00015707,2]
[403136423,1769185840611,-300.0,0.00015707,2]
[403136425,1769185840620,-300.0,0.00015707,2]
[403136427,1769185840629,-300.0,0.00015707,2]
[403136429,1769185840639,-300.0,0.00015707,2]
[403136433,1769185840648,-300.0,0.00015707,2]
[403136437,1769185840657,-300.0,0.00015707,2]
[403136441,1769185840667,-300.0,0.00015707,2]
[403136445,1769185840675,-300.0,0.00015707,2]
[403136447,1769185840684,-300.0,0.00015707,2]
[403136448,1769185840693,-150.31,0.00015707,2]
[403136450,1769185840704,-238.75072583,0.00015724,2]
[403136452,1769185840715,-500.0,0.00015749,30]
[403136455,1769185840725,-500.0,0.00015749,30]
[403136456,1769185840734,-500.0,0.00015749,30]
[403136458,1769185840744,-706.94102553,0.00015749,30]
[403136460,1769185840753,-449.48588857,0.00015749,30]
[403136462,1769185840762,-179.48044253,0.00015749,30]
[403136464,1769185840771,-150.31,0.00015981,2]
[403136466,1769185840780,-216.11429259,0.00016,2]
[403136468,1769185840789,-600.0,0.0001602,2]
[403136470,1769185840798,-150.33,0.00016255,2]
[403136472,1769185840807,-420.0,0.00016416,2]
[403136474,1769185840816,-150.27980798,0.00016438,2]
[403136476,1769185840826,-164.47975971,0.00016438,2]
[403136478,1769185840835,-200.0,0.00016473,2]
[403136480,1769185840844,-40262.50546116,0.00017,2]
[403136624,1769185844636,-792.31526139,0.00017,2]
[403136625,1769185844868,-9909.78073313,0.00017,2]
[403136626,1769185844881,-1650.71559576,0.00017,2]
[403136631,1769185846417,-496.36917147,0.00017,2]
[403136632,1769185846428,-652.0,0.00017,2]
[403136633,1769185846532,-370.88638246,0.00017,2]
[403136634,1769186403019,1204.63,0.0001,2]
[403136635,1769186403415,1204.63,0.0001,2]
[403136636,1769186403720,1204.63,0.000101,2]
[403136637,1769186404055,1204.63,0.000101,2]
[403136638,1769186405659,1204.63,0.000102,2]
[403136639,1769186406899,1204.63,0.000102,2]
[403136640,1769186407279,1204.63,0.000102,2]
[403136641,1769186407627,1204.63,0.000103,2]
[403136642,1769186407973,1204.63,0.000103,2]
[403136643,1769186408315,1204.63,0.000104,2]
[403136644,1769186408590,1204.63,0.000104,2]
[403136645,1769186408949,1204.63,0.000104,2]
[403136646,1769186409296,1204.63,0.000105,2]
[403136647,1769186410649,1204.63,0.000105,2]
[403136648,1769186411144,1204.63,0.000105,2]
[403136649,1769186411504,1204.63,0.000106,2]
[403136650,1769186411852,1204.63,0.000106,2]
[403136651,1769186412191,1204.63,0.000107,2]
[403136652,1769186413272,1204.63,0.000107,2]
[403136653,1769186413581,1204.63,0.000107,2]
[403136654,1769186413895,1204.63,0.000108,2]
[403136655,1769186414215,1204.63,0.000108,2]
[403136656,1769186415346,1204.63,0.000109,2]
[403136657,1769186415975,1204.63,0.000109,2]
[403136658,1769186416442,1204.63,0.000109,2]
[403136659,1769186416768,1204.63,0.00011,2]
[403136660,1769186417077,1204.63,0.00011,2]
[403136661,1769186417372,1204.63,0.000111,2]
[403136662,1769186417838,1204.63,0.000111,2]
[403136663,1769186418887,1204.63,0.000111,2]
[403136664,1769186419465,1204.63,0.000112,2]
[403136665,1769186420220,1204.63,0.000112,2]
[403136666,1769186421686,1204.63,0.000113,2]
[403136667,1769186422051,1204.63,0.000113,2]
[403136668,1769186422347,1204.63,0.000113,2]
[403136669,1769186422723,1204.63,0.000114,2]
[403136670,1769186423045,1204.63,0.000114,2]
[403136671,1769186423810,1204.63,0.000114,2]
[403136672,1769186424203,1204.63,0.000115,2]
[403136673,1769186425362,1204.63,0.000115,2]
[403136674,1769186425665,1204.63,0.000116,2]
[403136675,1769186426019,1204.63,0.000116,2]
[403136676,1769186426970,1204.63,0.000116,2]
[403136677,1769186427285,1204.63,0.000117,2]
[403136678,1769186427627,1204.63,0.000117,2]
[403136679,1769186427953,1204.63,0.000118,2]
[403136680,1769186429349,1204.63,0.000118,2]
[403136681,1769186429668,1204.63,0.000118,2]
[403136682,1769186430036,1204.63,0.000119,2]
[403136683,1769186431956,1204.57,0.0001,2]
[403136684,1769186748087,691.94807496,0.00012,2]
[403136685,1769186872636,968.91284753,0.00012,2]
[403136686,1769186933772,852.05326697,0.00012,2]
[403136724,1769187032371,-184.45,0.00012322,2]
[403136725,1769187032381,-594.0,0.00012322,2]
[403136727,1769187032391,-190.46284753,0.00012635,2]
[403136761,1769187038528,-4.49475839,0.00012635,2]
[403136763,1769187038538,-245.93,0.0001327,2]
[403136765,1769187038548,-233.0307292,0.00013699,2]
[403136767,1769187038557,-510.4,0.000142,2]
[403136769,1769187038566,-307.42,0.00014218,2]
[403136771,1769187038576,-230.04997499,0.00014635,2]
[403136773,1769187038585,-253.15344383,0.00014845,2]
[403136775,1769187038594,-344.64399111,0.00014943,2]
[403136783,1769187038654,-155.35600889,0.00014943,2]
[403136785,1769187038663,-500.0,0.00014943,2]
[403136787,1769187038673,-500.0,0.00014943,2]
[403136789,1769187038682,-400.86462335,0.00014943,2]
[403136791,1769187038691,-500.0,0.00014943,2]
[403136793,1769187038701,-500.0,0.00014943,2]
[403136795,1769187038710,-206.49067078,0.00014943,2]
[403137303,1769187044179,-293.50932922,0.00014943,2]
[403137305,1769187044188,-500.0,0.00014943,2]
[403137307,1769187044197,-500.0,0.00014943,2]
[403137308,1769187044207,-500.0,0.00014943,2]
[403137310,1769187044216,-500.0,0.00014943,2]
[403137311,1769187044225,-587.45541462,0.00014943,2]
[403137312,1769187044234,-276.40811914,0.00014943,2]
[403137314,1769187044243,-500.0,0.00014943,2]
[403137315,1769187044253,-500.0,0.00014943,2]
[403137316,1769187044263,-500.0,0.00014943,2]
[403137317,1769187044272,-500.0,0.00014943,2]
[403137318,1769187044281,-500.0,0.00014943,2]
[403137319,1769187044291,-153.64783002,0.00014943,2]
[403137320,1769187044302,-500.0,0.00014943,2]
[403137321,1769187044311,-352.29255742,0.00014943,2]
[403137322,1769187044320,-500.0,0.00014943,2]
[403137323,1769187044330,-500.0,0.00014943,2]
[403137324,1769187044339,-192.06856669,0.00014944,2]
[403137325,1769187044348,-245.20720059,0.00014944,2]
[403137326,1769187044358,-300.0,0.00014944,2]
[403137327,1769187044366,-300.0,0.00014944,2]
[403137328,1769187044375,-300.0,0.00014944,2]
[403137329,1769187044384,-1200.0,0.00014944,2]
[403137330,1769187044393,-39247.30063876,0.00014945,2]
[403137331,1769187044403,-300.0,0.00014945,2]
[403137332,1769187044412,-172.36741213,0.00014989,2]
[403137333,1769187044423,-500.76031757,0.00014999,2]
[403137334,1769187044433,-168.205343,0.00015068,2]
[403137335,1769187044443,-368.9,0.00015166,2]
[403137336,1769187044452,-300.0,0.00015245,2]
[403137337,1769187044463,-300.0,0.00015245,2]
[403137338,1769187044472,-300.0,0.00015245,2]
[403137339,1769187044481,-300.0,0.00015245,2]
[403137340,1769187044491,-300.0,0.00015245,2]
[403137341,1769187044499,-300.0,0.00015245,2]
[403137342,1769187044611,-300.0,0.00015245,2]
[403137343,1769187044621,-300.0,0.00015245,2]
[403137344,1769187044630,-300.0,0.00015245,2]
[403137345,1769187044639,-300.0,0.00015245,2]
[403137346,1769187044648,-300.0,0.00015245,2]
[403137347,1769187044658,-300.0,0.00015245,2]
[403137348,1769187044667,-300.0,0.00015245,2]
[403137349,1769187044676,-300.0,0.00015245,2]
[403137350,1769187044686,-300.0,0.00015245,2]
[403137351,1769187044695,-600.0,0.00015245,2]
[403137352,1769187044704,-430.39,0.00016114,2]
[403137353,1769187044713,-859.120134,0.00016331,2]
[403137354,1769187044723,-470.8474734,0.00016331,2]
[403137355,1769187044732,-220.5654659,0.00016331,2]
[403137356,1769187044742,-470.8474733,0.00016331,2]
[403137357,1769187044751,-420.0,0.00016356,2]
[403137358,1769187044760,-175.1,0.00016438,2]
[403137359,1769187044769,-1680.0,0.00016438,2]
[403137360,1769187044778,-500.0,0.00016438,2]
[403137361,1769187044787,-202.60658399,0.00016438,2]
[403137362,1769187044798,-200.34883371,0.00016473,2]
[403137363,1769187044807,-265.14234405,0.00016635,2]
[403137364,1769187044817,-720.0,0.0001677,2]
[403137365,1769187044827,-5638.2686001,0.000169,2]
[403137366,1769187044836,-500.0,0.00016999,2]
[403137367,1769187044845,-400.02,0.00016999,2]
[403137368,1769187044855,-34334.88496914,0.00017,2]
[403137369,1769187044864,-491.87,0.00017062,2]
[403137370,1769187044874,-253.15344383,0.00017488,2]
[403137371,1769187044883,-160.0,0.00017603,2]
[403137372,1769187044892,-1041.66666667,0.00017603,2]
[403137373,1769187044902,-1000.0,0.00017644,2]
[403137374,1769187044912,-689.4696485,0.00017795,2]
[403137375,1769187044921,-150.30156277,0.00017808,2]
[403137376,1769187044930,-175.1,0.00017825,2]
[403137377,1769187044940,-587.0,0.00017902,2]
[403137379,1769187044949,-11877.9584497,0.00017959,2]
[403137381,1769187044958,-553.35,0.0001801,2]
[403137382,1769187044967,-890.0,0.00018082,2]
[403137384,1769187044976,-864.0,0.00018447,2]
[403137385,1769187044985,-470.8474733,0.00018622,2]
[403137387,1769187044996,-300.23471312,0.00018635,2]
[403137388,1769187045005,-470.8474734,0.00018656,2]
[403137390,1769187045015,-859.120134,0.00018735,2]
[403137391,1769187045024,-614.84,0.00018958,2]
[403137393,1769187045033,-1320.89625972,0.00019101,3]
[403137394,1769187045045,-220.5654659,0.00019133,2]
[403137395,1769187045055,-500.91,0.00019178,2]
[403137396,1769187045065,-500.0,0.00019178,2]
[403137397,1769187045074,-846.3575,0.00019178,2]
[403137398,1769187045083,-846.3575,0.00019178,2]
[403137399,1769187045092,-453.65,0.00019178,2]
[403137400,1769187045101,-198.56,0.000192,2]
[403137401,1769187045111,-175.1,0.00019213,2]
[403137402,1769187045120,-372.05,0.00019274,3]
[403137403,1769187045129,-846.3575,0.00019589,3]
[403137404,1769187045138,-200.0125,0.00019589,3]
[403137405,1769187045148,-823.0,0.00019594,2]
[403137406,1769187045158,-445.76906894,0.000199,2]
[403137407,1769187045167,-1659.61,0.00019989,2]
[403137408,1769187045176,-1332.25,0.0001999,3]
[403137409,1769187045186,-666.13,0.0001999,3]
[403137410,1769187045195,-77183.1217384,0.0002,2]
[403137421,1769187046681,-153.64783002,0.00014943,2]
[403137422,1769187046691,-312.30175765,0.0002,2]
[403137439,1769187428900,968.91284753,0.00012,2]
[403137440,1769187459942,958.66807496,0.00012,2]
[403137441,1769187602401,1204.63,0.0001,2]
[403137442,1769187602716,1204.63,0.0001,2]
[403137443,1769187603647,1204.63,0.000101,2]
[403137444,1769187604022,1204.63,0.000101,2]
[403137445,1769187604377,1204.63,0.000102,2]
[403137446,1769187604720,1204.63,0.000102,2]
[403137447,1769187605090,1204.63,0.000102,2]
[403137448,1769187605486,1204.63,0.000103,2]
[403137449,1769187609850,1204.63,0.000103,2]
[403137450,1769187610182,1204.63,0.000104,2]
[403137451,1769187610514,1204.63,0.000104,2]
[403137452,1769187610847,1204.63,0.000104,2]
[403137453,1769187611156,1204.63,0.000105,2]
[403137454,1769187611459,1204.63,0.000105,2]
[403137455,1769187611807,1204.63,0.000105,2]
[403137456,1769187612146,1204.63,0.000106,2]
[403137457,1769187612540,1204.63,0.000106,2]
[403137458,1769187612898,1204.63,0.000107,2]
[403137459,1769187613209,1204.63,0.000107,2]
[403137460,1769187613564,1204.63,0.000107,2]
[403137461,1769187613988,1204.63,0.000108,2]
[403137462,1769187614350,1204.63,0.000108,2]
[403137463,1769187614698,1204.63,0.000109,2]
[403137464,1769187615018,1204.63,0.000109,2]
[403137465,1769187615362,1204.63,0.000109,2]
[403137466,1769187615770,1204.63,0.00011,2]
[403137467,1769187616136,1204.63,0.00011,2]
[403137468,1769187616547,1204.63,0.000111,2]
[403137469,1769187616860,1204.63,0.000111,2]
[403137470,1769187617202,1204.63,0.000111,2]
[403137471,1769187618574,1204.63,0.000112,2]
[403137472,1769187618872,1204.63,0.000112,2]
[403137473,1769187619218,1204.63,0.000113,2]
[403137474,1769187619541,1204.63,0.000113,2]
[403137475,1769187619859,1204.63,0.000113,2]
[403137476,1769187620179,1204.63,0.000114,2]
[403137477,1769187620445,1204.63,0.000114,2]
[403137478,1769187620732,1204.63,0.000114,2]
[403137479,1769187621083,1204.63,0.000115,2]
[403137480,1769187621412,1204.63,0.000115,2]
[403137481,1769187621770,1204.63,0.000116,2]
[403137482,1769187621844,852.05326697,0.00012,2]
[403137483,1769187622076,1204.63,0.000116,2]
[403137484,1769187622485,1204.63,0.000116,2]
[403137485,1769187622867,1204.63,0.000117,2]
[403137486,1769187623328,1204.63,0.000117,2]
[403137487,1769187623672,1204.63,0.000118,2]
[403137488,1769187623980,1204.63,0.000118,2]
[403137489,1769187624334,1204.63,0.000118,2]
[403137490,1769187624659,1204.63,0.000119,2]
[403137491,1769187625573,1204.57,0.0001,2]
[403137492,1769187785059,10022.79737496,5e-06,2]
[403137530,1769188081054,245.24,5.994e-05,2]
[403137544,1769188232469,-500.0,0.00012131,2]